[Event "Titled Tuesday Blitz November 29 Late 2022"]
[White "Schuster, Karsten"]
[Black "Ferreira, Vitor Hugo Vieira"]
[WhiteFideId "4611071"]
[BlackFideId "2119765"]
[WhiteElo "2294"]
[BlackElo "2168"]
[Result "0-1"]
[Round "04"]
[TimeControl "180+1"]
[Date "2022.11.30"]
[WhiteClock "0:00:07"]
[BlackClock "0:00:10"]

1. d4 {[%clk 0:03:00]}  d5 {[%clk 0:02:59]} 2. c4 {[%clk 0:03:01]}  c6 {[%clk 0:02:59]} 3. cxd5 {[%clk 0:03:00]}  cxd5 {[%clk 0:02:58]} 4. Bf4 {[%clk 0:03:01]}  Nf6 {[%clk 0:02:57]} 5. Nc3 {[%clk 0:03:00]}  e6 {[%clk 0:02:57]} 6. e3 {[%clk 0:03:01]}  Bd6 {[%clk 0:02:57]} 7. Bg3 {[%clk 0:03:01]}  O-O {[%clk 0:02:56]} 8. Bd3 {[%clk 0:03:00]}  Re8 {[%clk 0:02:56]} 9. Rc1 {[%clk 0:02:57]}  Nc6 {[%clk 0:02:52]} 10. Bb1 {[%clk 0:02:56]}  e5 {[%clk 0:02:48]} 11. dxe5 {[%clk 0:02:53]}  Nxe5 {[%clk 0:02:43]} 12. Nge2 {[%clk 0:02:49]}  Be6 {[%clk 0:02:24]} 13. O-O {[%clk 0:02:46]}  Nc4 {[%clk 0:02:24]} 14. b3 {[%clk 0:02:37]}  Nb6 {[%clk 0:02:19]} 15. Nd4 {[%clk 0:02:33]}  a6 {[%clk 0:02:17]} 16. Nxe6 {[%clk 0:02:23]}  fxe6 {[%clk 0:02:16]} 17. Bh4 {[%clk 0:02:18]}  Rc8 {[%clk 0:02:05]} 18. Qd3 {[%clk 0:02:17]}  g6 {[%clk 0:01:57]} 19. Rfd1 {[%clk 0:02:08]}  Be7 {[%clk 0:01:53]} 20. Bg3 {[%clk 0:02:04]}  Bf8 {[%clk 0:01:43]} 21. h3 {[%clk 0:02:02]}  Ba3 {[%clk 0:01:40]} 22. Rc2 {[%clk 0:02:01]}  Bd6 {[%clk 0:01:40]} 23. Ne2 {[%clk 0:01:54]}  Bxg3 {[%clk 0:01:37]} 24. Nxg3 {[%clk 0:01:53]}  Rxc2 {[%clk 0:01:37]} 25. Bxc2 {[%clk 0:01:49]}  Qc7 {[%clk 0:01:37]} 26. e4 {[%clk 0:01:43]}  Rc8 {[%clk 0:01:36]} 27. Bb1 {[%clk 0:01:42]}  Qc3 {[%clk 0:01:37]} 28. exd5 {[%clk 0:01:39]}  Qxd3 {[%clk 0:01:36]} 29. Bxd3 {[%clk 0:01:37]}  Nbxd5 {[%clk 0:01:29]} 30. Ne2 {[%clk 0:01:36]}  Nb4 {[%clk 0:01:26]} 31. Bb1 {[%clk 0:01:35]}  Rc7 {[%clk 0:01:25]} 32. Kf1 {[%clk 0:01:30]}  Kf7 {[%clk 0:01:25]} 33. Ke1 {[%clk 0:01:29]}  e5 {[%clk 0:01:21]} 34. a3 {[%clk 0:01:26]}  Nc6 {[%clk 0:01:17]} 35. b4 {[%clk 0:01:25]}  Ke7 {[%clk 0:01:11]} 36. f3 {[%clk 0:01:19]}  Na7 {[%clk 0:01:04]} 37. g4 {[%clk 0:01:08]}  Nb5 {[%clk 0:01:01]} 38. a4 {[%clk 0:01:07]}  Na3 {[%clk 0:00:57]} 39. g5 {[%clk 0:01:04]}  Nh5 {[%clk 0:00:51]} 40. Be4 {[%clk 0:01:02]}  Nc2+ {[%clk 0:00:48]} 41. Kf2 {[%clk 0:01:01]}  Nxb4 {[%clk 0:00:38]} 42. a5 {[%clk 0:00:52]}  Nc6 {[%clk 0:00:33]} 43. Rd5 {[%clk 0:00:46]}  Ke6 {[%clk 0:00:30]} 44. Rc5 {[%clk 0:00:45]}  Ng7 {[%clk 0:00:28]} 45. f4 {[%clk 0:00:39]}  Kd6 {[%clk 0:00:25]} 46. Rd5+ {[%clk 0:00:37]}  Ke6 {[%clk 0:00:23]} 47. Rc5 {[%clk 0:00:37]}  exf4 {[%clk 0:00:17]} 48. Nxf4+ {[%clk 0:00:36]}  Kd6 {[%clk 0:00:18]} 49. Rd5+ {[%clk 0:00:36]}  Ke7 {[%clk 0:00:16]} 50. Rc5 {[%clk 0:00:35]}  Kd7 {[%clk 0:00:15]} 51. Rd5+ {[%clk 0:00:33]}  Kc8 {[%clk 0:00:14]} 52. h4 {[%clk 0:00:27]}  Rf7 {[%clk 0:00:14]} 53. Ke3 {[%clk 0:00:21]}  Kc7 {[%clk 0:00:14]} 54. Rc5 {[%clk 0:00:15]}  Kd6 {[%clk 0:00:12]} 55. Rd5+ {[%clk 0:00:12]}  Kc7 {[%clk 0:00:13]} 56. Rc5 {[%clk 0:00:12]}  Rxf4 {[%clk 0:00:12]} 57. Rxc6+ {[%clk 0:00:10]}  bxc6 {[%clk 0:00:12]} 58. Kxf4 {[%clk 0:00:10]}  Kd6 {[%clk 0:00:12]} 59. Kg4 {[%clk 0:00:09]}  Ne6 {[%clk 0:00:11]} 60. Bd3 {[%clk 0:00:09]}  Nc5 {[%clk 0:00:11]} 61. Bc2 {[%clk 0:00:07]}  Nb7 {[%clk 0:00:11]} 62. Bd3 {[%clk 0:00:07]}  Nxa5 {[%clk 0:00:11]} 63. Bxa6 {[%clk 0:00:07]}  c5 {[%clk 0:00:11]} 64. Bd3 {[%clk 0:00:07]}  c4 {[%clk 0:00:11]} 65. Bc2 {[%clk 0:00:08]}  Ke5 {[%clk 0:00:11]} 66. h5 {[%clk 0:00:08]}  gxh5+ {[%clk 0:00:06]} 67. Kxh5 {[%clk 0:00:08]}  Kf4 {[%clk 0:00:05]} 68. Bxh7 {[%clk 0:00:08]}  Nc6 {[%clk 0:00:05]} 69. Bb1 {[%clk 0:00:08]}  Ne5 {[%clk 0:00:05]} 70. g6 {[%clk 0:00:08]}  Nxg6 {[%clk 0:00:05]} 71. Kxg6 {[%clk 0:00:07]}  Ke3 {[%clk 0:00:06]} 72. Bf5 {[%clk 0:00:07]}  Kd2 {[%clk 0:00:06]} 73. Kf6 {[%clk 0:00:07]}  c3 {[%clk 0:00:07]} 74. Ke5 {[%clk 0:00:07]}  Kc1 {[%clk 0:00:08]} 75. Kd4 {[%clk 0:00:07]}  Kb2 {[%clk 0:00:08]} 76. Kd3 {[%clk 0:00:07]}  c2 {[%clk 0:00:09]} 77. Kd2 {[%clk 0:00:07]}  c1=Q+ {[%clk 0:00:10]} 0-1


[Site "https://www.chess.com"]

[Event "Titled Tuesday Blitz November 29 Late 2022"]
[White "Souleidis, Georgios"]
[Black "Rustemov, Alexander"]
[WhiteFideId "4206827"]
[BlackFideId "4119002"]
[WhiteElo "2401"]
[BlackElo "2845"]
[Result "1-0"]
[Round "04"]
[TimeControl "180+1"]
[Date "2022.11.30"]
[WhiteClock "0:00:13"]
[BlackClock "0:00:09"]

1. e4 {[%clk 0:03:00]}  e6 {[%clk 0:02:59]} 2. d4 {[%clk 0:02:57]}  d5 {[%clk 0:02:59]} 3. Nc3 {[%clk 0:02:57]}  Bb4 {[%clk 0:02:58]} 4. exd5 {[%clk 0:02:56]}  exd5 {[%clk 0:02:58]} 5. Bd3 {[%clk 0:02:57]}  Nc6 {[%clk 0:02:57]} 6. Nf3 {[%clk 0:02:56]}  Bg4 {[%clk 0:02:52]} 7. O-O {[%clk 0:02:56]}  Nge7 {[%clk 0:02:52]} 8. h3 {[%clk 0:02:51]}  Bf5 {[%clk 0:02:50]} 9. Ne2 {[%clk 0:02:47]}  O-O {[%clk 0:02:46]} 10. Bf4 {[%clk 0:02:46]}  Qd7 {[%clk 0:02:38]} 11. Ng3 {[%clk 0:02:43]}  Bg6 {[%clk 0:02:35]} 12. c3 {[%clk 0:02:42]}  Ba5 {[%clk 0:02:33]} 13. Re1 {[%clk 0:02:40]}  Rae8 {[%clk 0:02:33]} 14. Qc2 {[%clk 0:02:36]}  h6 {[%clk 0:02:21]} 15. a4 {[%clk 0:02:35]}  Bb6 {[%clk 0:02:18]} 16. b4 {[%clk 0:02:31]}  a6 {[%clk 0:02:18]} 17. a5 {[%clk 0:02:28]}  Ba7 {[%clk 0:02:17]} 18. Nh4 {[%clk 0:02:11]}  Bxd3 {[%clk 0:02:15]} 19. Qxd3 {[%clk 0:02:12]}  g5 {[%clk 0:02:08]} 20. Nh5 {[%clk 0:01:56]}  f5 {[%clk 0:01:55]} 21. Qg3 {[%clk 0:01:51]}  Kf7 {[%clk 0:01:38]} 22. Bxg5 {[%clk 0:01:11]}  Rg8 {[%clk 0:01:32]} 23. Nf3 {[%clk 0:01:11]}  hxg5 {[%clk 0:00:48]} 24. Nxg5+ {[%clk 0:01:11]}  Kg6 {[%clk 0:00:49]} 25. Nf4+ {[%clk 0:01:02]}  Kf6 {[%clk 0:00:44]} 26. Nh5+ {[%clk 0:00:33]}  Kg6 {[%clk 0:00:43]} 27. Nf4+ {[%clk 0:00:34]}  Kf6 {[%clk 0:00:44]} 28. Re6+ {[%clk 0:00:34]}  Qxe6 {[%clk 0:00:42]} 29. Nfxe6 {[%clk 0:00:33]}  Ng6 {[%clk 0:00:34]} 30. Qxc7 {[%clk 0:00:28]}  Rxe6 {[%clk 0:00:30]} 31. Nxe6 {[%clk 0:00:28]}  Kxe6 {[%clk 0:00:30]} 32. Re1+ {[%clk 0:00:27]}  Kf6 {[%clk 0:00:29]} 33. Qxb7 {[%clk 0:00:27]}  Nge7 {[%clk 0:00:28]} 34. Rxe7 {[%clk 0:00:26]}  Nxe7 {[%clk 0:00:27]} 35. Qxa7 {[%clk 0:00:26]}  Ng6 {[%clk 0:00:18]} 36. Qxa6+ {[%clk 0:00:26]}  Kf7 {[%clk 0:00:18]} 37. Qb7+ {[%clk 0:00:24]}  Ke6 {[%clk 0:00:18]} 38. a6 {[%clk 0:00:24]}  Nf4 {[%clk 0:00:18]} 39. g3 {[%clk 0:00:24]}  Nxh3+ {[%clk 0:00:17]} 40. Kg2 {[%clk 0:00:25]}  Nf4+ {[%clk 0:00:17]} 41. Kf3 {[%clk 0:00:25]}  Nh3 {[%clk 0:00:14]} 42. a7 {[%clk 0:00:24]}  Ng5+ {[%clk 0:00:14]} 43. Ke2 {[%clk 0:00:24]}  Ne4 {[%clk 0:00:14]} 44. a8=Q {[%clk 0:00:19]}  Rxa8 {[%clk 0:00:13]} 45. Qxa8 {[%clk 0:00:19]}  Nxc3+ {[%clk 0:00:13]} 46. Kf3 {[%clk 0:00:19]}  Ne4 {[%clk 0:00:10]} 47. Qc6+ {[%clk 0:00:19]}  Ke7 {[%clk 0:00:10]} 48. b5 {[%clk 0:00:17]}  Nd2+ {[%clk 0:00:09]} 49. Kf4 {[%clk 0:00:17]}  Nc4 {[%clk 0:00:09]} 50. b6 {[%clk 0:00:14]}  Nd6 {[%clk 0:00:09]} 51. b7 {[%clk 0:00:13]} 1-0


[Site "https://www.chess.com"]

[Event "Titled Tuesday Blitz November 29 Late 2022"]
[White "Steinberg, Nitzan"]
[Black "Aguilar, Juan"]
[WhiteFideId "2801795"]
[BlackFideId "3800091"]
[WhiteElo "2491"]
[BlackElo "2528"]
[Result "1-0"]
[Round "04"]
[TimeControl "180+1"]
[Date "2022.11.30"]
[WhiteClock "0:00:04"]
[BlackClock "0:00:01"]

1. Nf3 {[%clk 0:02:55]}  g6 {[%clk 0:02:56]} 2. e4 {[%clk 0:02:55]}  Bg7 {[%clk 0:02:54]} 3. d4 {[%clk 0:02:55]}  d6 {[%clk 0:02:53]} 4. Nc3 {[%clk 0:02:56]}  Nf6 {[%clk 0:02:53]} 5. Be3 {[%clk 0:02:49]}  c6 {[%clk 0:02:52]} 6. h3 {[%clk 0:02:47]}  b5 {[%clk 0:02:50]} 7. Bd3 {[%clk 0:02:48]}  a5 {[%clk 0:02:47]} 8. a4 {[%clk 0:02:47]}  b4 {[%clk 0:02:45]} 9. Nb1 {[%clk 0:02:48]}  O-O {[%clk 0:02:42]} 10. O-O {[%clk 0:02:48]}  Bb7 {[%clk 0:02:39]} 11. c3 {[%clk 0:02:48]}  Nbd7 {[%clk 0:02:33]} 12. Nbd2 {[%clk 0:02:48]}  c5 {[%clk 0:02:31]} 13. Re1 {[%clk 0:02:48]}  Qc7 {[%clk 0:02:29]} 14. Bf4 {[%clk 0:02:46]}  e5 {[%clk 0:02:28]} 15. Bh2 {[%clk 0:02:44]}  Nh5 {[%clk 0:02:26]} 16. Nc4 {[%clk 0:02:39]}  Nf4 {[%clk 0:02:22]} 17. Bxf4 {[%clk 0:02:38]}  exf4 {[%clk 0:02:23]} 18. Qd2 {[%clk 0:02:38]}  d5 {[%clk 0:02:13]} 19. exd5 {[%clk 0:02:37]}  Bxd5 {[%clk 0:02:14]} 20. Nce5 {[%clk 0:02:36]}  Nxe5 {[%clk 0:02:11]} 21. Nxe5 {[%clk 0:02:35]}  Bh6 {[%clk 0:02:07]} 22. dxc5 {[%clk 0:02:18]}  Qxc5 {[%clk 0:01:58]} 23. Nd7 {[%clk 0:02:17]}  Qd6 {[%clk 0:01:55]} 24. Nxf8 {[%clk 0:02:14]}  Bxg2 {[%clk 0:01:41]} 25. Rad1 {[%clk 0:02:05]}  Rxf8 {[%clk 0:01:35]} 26. Be4 {[%clk 0:02:04]}  Qxd2 {[%clk 0:01:32]} 27. Rxd2 {[%clk 0:02:05]}  f3 {[%clk 0:01:26]} 28. Rd3 {[%clk 0:02:01]}  bxc3 {[%clk 0:01:25]} 29. bxc3 {[%clk 0:02:00]}  Re8 {[%clk 0:01:25]} 30. c4 {[%clk 0:01:50]}  Kf8 {[%clk 0:01:24]} 31. Rdd1 {[%clk 0:01:47]}  Bf4 {[%clk 0:01:11]} 32. c5 {[%clk 0:01:46]}  Re5 {[%clk 0:01:10]} 33. Rd3 {[%clk 0:01:17]}  Rg5 {[%clk 0:01:01]} 34. c6 {[%clk 0:00:57]}  Bxh3+ {[%clk 0:00:59]} 35. Kh1 {[%clk 0:00:58]}  Bg2+ {[%clk 0:00:57]} 36. Kg1 {[%clk 0:00:58]}  Rh5 {[%clk 0:00:55]} 37. Bxf3 {[%clk 0:00:57]}  Rh1+ {[%clk 0:00:55]} 38. Kxg2 {[%clk 0:00:58]}  Rxe1 {[%clk 0:00:55]} 39. Rd4 {[%clk 0:00:50]}  Be5 {[%clk 0:00:54]} 40. Rd5 {[%clk 0:00:50]}  Bc7 {[%clk 0:00:51]} 41. Rb5 {[%clk 0:00:38]}  Ke7 {[%clk 0:00:45]} 42. Rd5 {[%clk 0:00:38]}  Ke6 {[%clk 0:00:39]} 43. Rd7 {[%clk 0:00:36]}  Bd6 {[%clk 0:00:39]} 44. Ra7 {[%clk 0:00:34]}  Ra1 {[%clk 0:00:39]} 45. Rxa5 {[%clk 0:00:26]}  Bc7 {[%clk 0:00:39]} 46. Ra8 {[%clk 0:00:20]}  h5 {[%clk 0:00:39]} 47. Be2 {[%clk 0:00:19]}  h4 {[%clk 0:00:35]} 48. Bb5 {[%clk 0:00:19]}  g5 {[%clk 0:00:33]} 49. Re8+ {[%clk 0:00:19]}  Kf6 {[%clk 0:00:31]} 50. Rc8 {[%clk 0:00:19]}  Be5 {[%clk 0:00:26]} 51. Rg8 {[%clk 0:00:15]}  Ra2 {[%clk 0:00:23]} 52. Rf8 {[%clk 0:00:13]}  Rc2 {[%clk 0:00:17]} 53. a5 {[%clk 0:00:11]}  Bd4 {[%clk 0:00:15]} 54. a6 {[%clk 0:00:06]}  Rxf2+ {[%clk 0:00:14]} 55. Kh3 {[%clk 0:00:07]}  Rf3+ {[%clk 0:00:13]} 56. Kg4 {[%clk 0:00:04]}  Rg3+ {[%clk 0:00:12]} 57. Kh5 {[%clk 0:00:05]}  h3 {[%clk 0:00:11]} 58. c7 {[%clk 0:00:05]}  h2 {[%clk 0:00:09]} 59. Bc6 {[%clk 0:00:04]}  Rh3+ {[%clk 0:00:09]} 60. Kg4 {[%clk 0:00:05]}  Rh4+ {[%clk 0:00:08]} 61. Kg3 {[%clk 0:00:05]}  Be5+ {[%clk 0:00:08]} 62. Kf2 {[%clk 0:00:06]}  Bxc7 {[%clk 0:00:08]} 63. a7 {[%clk 0:00:06]}  Rf4+ {[%clk 0:00:05]} 64. Ke2 {[%clk 0:00:04]}  Ra4 {[%clk 0:00:01]} 65. a8=Q {[%clk 0:00:04]} 1-0


[Site "https://www.chess.com"]

[Event "Titled Tuesday Blitz November 29 Late 2022"]
[White "Tan, Ralph"]
[Black "Mathur, Rithwik"]
[WhiteFideId "30966590"]
[BlackFideId "30913667"]
[WhiteElo "2059"]
[BlackElo "2011"]
[Result "1-0"]
[Round "04"]
[TimeControl "180+1"]
[Date "2022.11.30"]
[WhiteClock "0:00:13"]
[BlackClock "0:00:02"]

1. Nf3 {[%clk 0:03:00]}  Nf6 {[%clk 0:02:59]} 2. g3 {[%clk 0:03:00]}  g6 {[%clk 0:02:59]} 3. Bg2 {[%clk 0:03:01]}  Bg7 {[%clk 0:03:00]} 4. O-O {[%clk 0:03:01]}  O-O {[%clk 0:02:59]} 5. d4 {[%clk 0:03:02]}  d5 {[%clk 0:02:51]} 6. c4 {[%clk 0:03:02]}  dxc4 {[%clk 0:02:51]} 7. Na3 {[%clk 0:03:00]}  c3 {[%clk 0:02:51]} 8. bxc3 {[%clk 0:03:00]}  c5 {[%clk 0:02:46]} 9. Qb3 {[%clk 0:02:37]}  Nc6 {[%clk 0:02:25]} 10. Rd1 {[%clk 0:02:26]}  cxd4 {[%clk 0:01:53]} 11. cxd4 {[%clk 0:02:24]}  Na5 {[%clk 0:01:42]} 12. Qd3 {[%clk 0:01:50]}  Bf5 {[%clk 0:01:40]} 13. Qb5 {[%clk 0:01:48]}  a6 {[%clk 0:01:30]} 14. Qb4 {[%clk 0:01:42]}  Nc6 {[%clk 0:01:06]} 15. Qe1 {[%clk 0:01:34]}  Be4 {[%clk 0:00:37]} 16. Bb2 {[%clk 0:01:30]}  b5 {[%clk 0:00:32]} 17. Rac1 {[%clk 0:01:28]}  Rc8 {[%clk 0:00:32]} 18. Nb1 {[%clk 0:01:20]}  Nd5 {[%clk 0:00:26]} 19. Nbd2 {[%clk 0:01:16]}  Bxf3 {[%clk 0:00:20]} 20. Nxf3 {[%clk 0:01:17]}  Na5 {[%clk 0:00:17]} 21. e4 {[%clk 0:01:14]}  Nc4 {[%clk 0:00:16]} 22. Ba1 {[%clk 0:01:11]}  Ndb6 {[%clk 0:00:15]} 23. h4 {[%clk 0:00:54]}  Qd7 {[%clk 0:00:15]} 24. h5 {[%clk 0:00:54]}  Rfd8 {[%clk 0:00:14]} 25. d5 {[%clk 0:00:41]}  Bxa1 {[%clk 0:00:11]} 26. Rxa1 {[%clk 0:00:42]}  Qg4 {[%clk 0:00:10]} 27. h6 {[%clk 0:00:27]}  e6 {[%clk 0:00:08]} 28. dxe6 {[%clk 0:00:23]}  Qxe6 {[%clk 0:00:09]} 29. Nd4 {[%clk 0:00:23]}  Qf6 {[%clk 0:00:08]} 30. Nb3 {[%clk 0:00:17]}  Nb2 {[%clk 0:00:06]} 31. Rxd8+ {[%clk 0:00:17]}  Rxd8 {[%clk 0:00:07]} 32. Qe2 {[%clk 0:00:14]}  N6c4 {[%clk 0:00:07]} 33. Re1 {[%clk 0:00:13]}  Nd3 {[%clk 0:00:06]} 34. Rd1 {[%clk 0:00:13]}  Nde5 {[%clk 0:00:04]} 35. Rxd8+ {[%clk 0:00:12]}  Qxd8 {[%clk 0:00:04]} 36. f4 {[%clk 0:00:11]}  Qb6+ {[%clk 0:00:04]} 37. Kh2 {[%clk 0:00:11]}  Nd7 {[%clk 0:00:02]} 38. e5 {[%clk 0:00:12]}  Nf8 {[%clk 0:00:01]} 39. Nd2 {[%clk 0:00:12]}  f6 {[%clk 0:00:02]} 40. Nxc4 {[%clk 0:00:12]}  bxc4 {[%clk 0:00:01]} 41. Qxc4+ {[%clk 0:00:13]}  Kh8 {[%clk 0:00:02]} 42. Qf7 {[%clk 0:00:13]} 1-0


[Site "https://www.chess.com"]

[Event "Titled Tuesday Blitz November 29 Late 2022"]
[White "Tirelli, Mauro"]
[Black "Perez Rodriguez, Jennifer"]
[WhiteFideId "845353"]
[BlackFideId "3507831"]
[WhiteElo "2166"]
[BlackElo "2170"]
[Result "1-0"]
[Round "04"]
[TimeControl "180+1"]
[Date "2022.11.30"]
[WhiteClock "0:00:04"]
[BlackClock "0:00:10"]

1. d4 {[%clk 0:03:00]}  d5 {[%clk 0:02:59]} 2. c4 {[%clk 0:02:59]}  c6 {[%clk 0:02:59]} 3. Nf3 {[%clk 0:02:59]}  Nf6 {[%clk 0:02:59]} 4. Nc3 {[%clk 0:02:58]}  e6 {[%clk 0:02:58]} 5. Bg5 {[%clk 0:02:55]}  Nbd7 {[%clk 0:02:51]} 6. e3 {[%clk 0:02:55]}  Qa5 {[%clk 0:02:44]} 7. Nd2 {[%clk 0:02:50]}  dxc4 {[%clk 0:02:42]} 8. Bxf6 {[%clk 0:02:50]}  Nxf6 {[%clk 0:02:42]} 9. Nxc4 {[%clk 0:02:49]}  Qc7 {[%clk 0:02:43]} 10. Be2 {[%clk 0:02:47]}  Be7 {[%clk 0:02:42]} 11. O-O {[%clk 0:02:47]}  O-O {[%clk 0:02:42]} 12. Rc1 {[%clk 0:02:47]}  Bd7 {[%clk 0:02:35]} 13. Qc2 {[%clk 0:02:41]}  Rad8 {[%clk 0:02:34]} 14. Rfd1 {[%clk 0:02:41]}  Bc8 {[%clk 0:02:34]} 15. a3 {[%clk 0:02:38]}  Rfe8 {[%clk 0:02:30]} 16. b4 {[%clk 0:02:38]}  Nd5 {[%clk 0:02:23]} 17. Ne4 {[%clk 0:02:35]}  Nb6 {[%clk 0:02:13]} 18. Ne5 {[%clk 0:02:32]}  f6 {[%clk 0:02:09]} 19. Nd3 {[%clk 0:02:25]}  Nd5 {[%clk 0:01:59]} 20. Nec5 {[%clk 0:02:24]}  Bd6 {[%clk 0:01:58]} 21. g3 {[%clk 0:02:24]}  e5 {[%clk 0:01:55]} 22. dxe5 {[%clk 0:02:11]}  Bxe5 {[%clk 0:01:52]} 23. Nxe5 {[%clk 0:02:09]}  Qxe5 {[%clk 0:01:52]} 24. Bc4 {[%clk 0:01:54]}  Kh8 {[%clk 0:01:50]} 25. Qd3 {[%clk 0:01:45]}  Bg4 {[%clk 0:01:42]} 26. Rd2 {[%clk 0:01:39]}  b6 {[%clk 0:01:12]} 27. Nb3 {[%clk 0:01:17]}  Bf3 {[%clk 0:01:08]} 28. Nd4 {[%clk 0:01:08]}  Be4 {[%clk 0:00:48]} 29. Nxc6 {[%clk 0:01:06]}  Qf5 {[%clk 0:00:47]} 30. Qe2 {[%clk 0:00:53]}  Nf4 {[%clk 0:00:32]} 31. exf4 {[%clk 0:00:38]}  Bxc6 {[%clk 0:00:32]} 32. Rxd8 {[%clk 0:00:38]}  Rxd8 {[%clk 0:00:31]} 33. Be6 {[%clk 0:00:35]}  Qe4 {[%clk 0:00:21]} 34. Qxe4 {[%clk 0:00:35]}  Bxe4 {[%clk 0:00:22]} 35. Rc8 {[%clk 0:00:34]}  Rxc8 {[%clk 0:00:22]} 36. Bxc8 {[%clk 0:00:35]}  Kg8 {[%clk 0:00:22]} 37. Kf1 {[%clk 0:00:35]}  Kf7 {[%clk 0:00:21]} 38. Ke2 {[%clk 0:00:36]}  Ke7 {[%clk 0:00:22]} 39. Ke3 {[%clk 0:00:36]}  Bd5 {[%clk 0:00:21]} 40. Bf5 {[%clk 0:00:36]}  g6 {[%clk 0:00:20]} 41. Bd3 {[%clk 0:00:36]}  Kd6 {[%clk 0:00:20]} 42. Kd4 {[%clk 0:00:36]}  Bf3 {[%clk 0:00:20]} 43. h4 {[%clk 0:00:35]}  f5 {[%clk 0:00:19]} 44. Bc4 {[%clk 0:00:33]}  h6 {[%clk 0:00:11]} 45. Bf7 {[%clk 0:00:33]}  Bh5 {[%clk 0:00:11]} 46. Ke3 {[%clk 0:00:25]}  Ke7 {[%clk 0:00:11]} 47. Bd5 {[%clk 0:00:23]}  Bd1 {[%clk 0:00:10]} 48. Bf3 {[%clk 0:00:21]}  Bb3 {[%clk 0:00:09]} 49. h5 {[%clk 0:00:22]}  gxh5 {[%clk 0:00:07]} 50. Bxh5 {[%clk 0:00:21]}  Kf6 {[%clk 0:00:07]} 51. Kd4 {[%clk 0:00:21]}  Ba2 {[%clk 0:00:07]} 52. Bf3 {[%clk 0:00:20]}  Bb3 {[%clk 0:00:07]} 53. Bd5 {[%clk 0:00:20]}  Bd1 {[%clk 0:00:06]} 54. Bc4 {[%clk 0:00:19]}  Bf3 {[%clk 0:00:06]} 55. Bd5 {[%clk 0:00:19]}  Bd1 {[%clk 0:00:06]} 56. Bb7 {[%clk 0:00:19]}  Bb3 {[%clk 0:00:05]} 57. Bc8 {[%clk 0:00:19]}  a5 {[%clk 0:00:04]} 58. bxa5 {[%clk 0:00:16]}  bxa5 {[%clk 0:00:05]} 59. Kc5 {[%clk 0:00:17]}  Bc2 {[%clk 0:00:05]} 60. Kb5 {[%clk 0:00:16]}  a4 {[%clk 0:00:05]} 61. Kb4 {[%clk 0:00:16]}  Ke7 {[%clk 0:00:04]} 62. Bb7 {[%clk 0:00:15]}  Kd6 {[%clk 0:00:04]} 63. Ba6 {[%clk 0:00:13]}  Kd5 {[%clk 0:00:04]} 64. Bb5 {[%clk 0:00:10]}  Ke4 {[%clk 0:00:04]} 65. Bxa4 {[%clk 0:00:10]}  Bb1 {[%clk 0:00:02]} 66. Bc6+ {[%clk 0:00:10]}  Kd3 {[%clk 0:00:02]} 67. a4 {[%clk 0:00:08]}  Ke2 {[%clk 0:00:02]} 68. a5 {[%clk 0:00:07]}  Bd3 {[%clk 0:00:02]} 69. Bb5 {[%clk 0:00:05]}  Bxb5 {[%clk 0:00:01]} 70. Kxb5 {[%clk 0:00:05]}  Kxf2 {[%clk 0:00:02]} 71. a6 {[%clk 0:00:05]}  Kxg3 {[%clk 0:00:03]} 72. a7 {[%clk 0:00:06]}  h5 {[%clk 0:00:04]} 73. a8=Q {[%clk 0:00:06]}  h4 {[%clk 0:00:05]} 74. Qg8+ {[%clk 0:00:06]}  Kxf4 {[%clk 0:00:05]} 75. Qg2 {[%clk 0:00:06]}  Ke3 {[%clk 0:00:04]} 76. Kc4 {[%clk 0:00:06]}  f4 {[%clk 0:00:05]} 77. Qg1+ {[%clk 0:00:03]}  Ke2 {[%clk 0:00:05]} 78. Qg2+ {[%clk 0:00:03]}  Ke3 {[%clk 0:00:05]} 79. Qh3+ {[%clk 0:00:03]}  f3 {[%clk 0:00:05]} 80. Qxh4 {[%clk 0:00:03]}  Ke2 {[%clk 0:00:05]} 81. Kd4 {[%clk 0:00:01]}  f2 {[%clk 0:00:05]} 82. Qg4+ {[%clk 0:00:02]}  Ke1 {[%clk 0:00:05]} 83. Qe4+ {[%clk 0:00:02]}  Kd1 {[%clk 0:00:06]} 84. Qh1+ {[%clk 0:00:02]}  Ke2 {[%clk 0:00:06]} 85. Qe4+ {[%clk 0:00:01]}  Kd1 {[%clk 0:00:06]} 86. Qd3+ {[%clk 0:00:02]}  Ke1 {[%clk 0:00:07]} 87. Qe3+ {[%clk 0:00:02]}  Kf1 {[%clk 0:00:07]} 88. Kd3 {[%clk 0:00:02]}  Kg1 {[%clk 0:00:08]} 89. Qg3+ {[%clk 0:00:02]}  Kh1 {[%clk 0:00:09]} 90. Qh3+ {[%clk 0:00:03]}  Kg1 {[%clk 0:00:09]} 91. Qg3+ {[%clk 0:00:03]}  Kh1 {[%clk 0:00:10]} 92. Qh3+ {[%clk 0:00:03]}  Kg1 {[%clk 0:00:10]} 93. Ke2 {[%clk 0:00:03]}  f1=Q+ {[%clk 0:00:09]} 94. Qxf1+ {[%clk 0:00:03]}  Kh2 {[%clk 0:00:10]} 95. Qf5 {[%clk 0:00:03]}  Kg1 {[%clk 0:00:10]} 96. Qg6+ {[%clk 0:00:04]}  Kh2 {[%clk 0:00:10]} 97. Kf2 {[%clk 0:00:04]} 1-0


[Site "https://www.chess.com"]

[Event "Titled Tuesday Blitz November 29 Late 2022"]
[White "Vlassov, Nikolai"]
[Black "Brown, Andrew"]
[WhiteFideId "4103360"]
[BlackFideId "3206513"]
[WhiteElo "2324"]
[BlackElo "2245"]
[Result "1-0"]
[Round "04"]
[TimeControl "180+1"]
[Date "2022.11.30"]
[WhiteClock "0:00:13"]
[BlackClock "0:00:02"]

1. e4 {[%clk 0:03:00]}  g6 {[%clk 0:03:00]} 2. Nc3 {[%clk 0:03:00]}  Bg7 {[%clk 0:03:00]} 3. h4 {[%clk 0:02:59]}  h5 {[%clk 0:03:00]} 4. Nf3 {[%clk 0:02:59]}  c6 {[%clk 0:03:00]} 5. Bc4 {[%clk 0:02:58]}  b5 {[%clk 0:02:43]} 6. Bb3 {[%clk 0:02:56]}  a5 {[%clk 0:02:36]} 7. a4 {[%clk 0:02:56]}  b4 {[%clk 0:02:35]} 8. Ne2 {[%clk 0:02:56]}  d5 {[%clk 0:02:33]} 9. Ng5 {[%clk 0:02:31]}  e6 {[%clk 0:02:29]} 10. d4 {[%clk 0:02:18]}  Ba6 {[%clk 0:02:23]} 11. Be3 {[%clk 0:02:07]}  Nd7 {[%clk 0:02:18]} 12. Nf4 {[%clk 0:02:03]}  Qe7 {[%clk 0:01:57]} 13. Qd2 {[%clk 0:01:46]}  Ngf6 {[%clk 0:01:55]} 14. f3 {[%clk 0:01:41]}  O-O {[%clk 0:01:29]} 15. e5 {[%clk 0:01:39]}  Nh7 {[%clk 0:01:27]} 16. Nxh7 {[%clk 0:01:30]}  Kxh7 {[%clk 0:01:27]} 17. g4 {[%clk 0:01:30]}  c5 {[%clk 0:01:07]} 18. c3 {[%clk 0:01:30]}  Rab8 {[%clk 0:00:32]} 19. Bc2 {[%clk 0:01:25]}  bxc3 {[%clk 0:00:25]} 20. bxc3 {[%clk 0:01:24]}  cxd4 {[%clk 0:00:21]} 21. cxd4 {[%clk 0:01:24]}  Qb4 {[%clk 0:00:18]} 22. gxh5 {[%clk 0:01:22]}  Qxd2+ {[%clk 0:00:09]} 23. Bxd2 {[%clk 0:01:19]}  Rfc8 {[%clk 0:00:08]} 24. hxg6+ {[%clk 0:01:18]}  Kh8 {[%clk 0:00:07]} 25. Bd1 {[%clk 0:01:03]}  Nxe5 {[%clk 0:00:07]} 26. dxe5 {[%clk 0:01:00]}  Bxe5 {[%clk 0:00:08]} 27. Ra2 {[%clk 0:00:50]}  Bc4 {[%clk 0:00:07]} 28. Rc2 {[%clk 0:00:48]}  Rb1 {[%clk 0:00:07]} 29. Kf2 {[%clk 0:00:38]}  Kg7 {[%clk 0:00:07]} 30. gxf7 {[%clk 0:00:38]}  Kxf7 {[%clk 0:00:07]} 31. Re1 {[%clk 0:00:27]}  Bf6 {[%clk 0:00:07]} 32. Ng2 {[%clk 0:00:26]}  Rg8 {[%clk 0:00:06]} 33. Be2 {[%clk 0:00:24]}  Bd4+ {[%clk 0:00:05]} 34. Be3 {[%clk 0:00:22]}  Rxe1 {[%clk 0:00:04]} 35. Nxe1 {[%clk 0:00:20]}  Bf6 {[%clk 0:00:04]} 36. Bxc4 {[%clk 0:00:19]}  Bxh4+ {[%clk 0:00:04]} 37. Ke2 {[%clk 0:00:19]}  dxc4 {[%clk 0:00:03]} 38. Rxc4 {[%clk 0:00:19]}  Be7 {[%clk 0:00:02]} 39. Nd3 {[%clk 0:00:17]}  Rb8 {[%clk 0:00:02]} 40. Ne5+ {[%clk 0:00:16]}  Kg8 {[%clk 0:00:02]} 41. Nc6 {[%clk 0:00:16]}  Rb2+ {[%clk 0:00:02]} 42. Kd3 {[%clk 0:00:17]}  Bb4 {[%clk 0:00:02]} 43. Nxb4 {[%clk 0:00:16]}  axb4 {[%clk 0:00:03]} 44. a5 {[%clk 0:00:16]}  b3 {[%clk 0:00:03]} 45. a6 {[%clk 0:00:15]}  Ra2 {[%clk 0:00:03]} 46. a7 {[%clk 0:00:15]}  b2 {[%clk 0:00:02]} 47. Rb4 {[%clk 0:00:15]}  Kf7 {[%clk 0:00:02]} 48. Kc2 {[%clk 0:00:13]} 1-0


[Site "https://www.chess.com"]